[Event "Titled Tuesday Blitz July 25 Early 2023"]
[White "Bauman_Guy"]
[Black "Souleidis, Georgios"]
[BlackFideId "4206827"]
[WhiteElo "2762"]
[BlackElo "2546"]
[Result "1-0"]
[Round "4"]
[TimeControl "180+2"]
[Date "2023.07.25"]
[WhiteClock "0:01:53"]
[BlackClock "0:00:06"]
[Board "64"]

1. e4 {[%clk 0:03:00]}  c5 {[%clk 0:02:58]} 2. Nf3 {[%clk 0:03:01]}  e6 {[%clk 0:02:59]} 3. d4 {[%clk 0:03:01]}  cxd4 {[%clk 0:03:00]} 4. Nxd4 {[%clk 0:03:01]}  Nf6 {[%clk 0:03:00]} 5. Nc3 {[%clk 0:03:02]}  Nc6 {[%clk 0:03:01]} 6. Ndb5 {[%clk 0:03:02]}  Bc5 {[%clk 0:03:00]} 7. Nd6+ {[%clk 0:03:03]}  Ke7 {[%clk 0:03:00]} 8. Bf4 {[%clk 0:03:03]}  e5 {[%clk 0:03:00]} 9. Nf5+ {[%clk 0:03:03]}  Kf8 {[%clk 0:03:01]} 10. Bg5 {[%clk 0:03:04]}  d6 {[%clk 0:03:01]} 11. Bxf6 {[%clk 0:03:03]}  Qxf6 {[%clk 0:03:00]} 12. Nd5 {[%clk 0:03:04]}  Qg6 {[%clk 0:02:59]} 13. c3 {[%clk 0:02:50]}  Bxf5 {[%clk 0:02:56]} 14. exf5 {[%clk 0:02:49]}  Qxf5 {[%clk 0:02:57]} 15. Qd2 {[%clk 0:02:49]}  Ne7 {[%clk 0:02:52]} 16. Nxe7 {[%clk 0:02:43]}  Kxe7 {[%clk 0:02:53]} 17. g3 {[%clk 0:02:44]}  Qe4+ {[%clk 0:02:51]} 18. Qe2 {[%clk 0:02:43]}  Qxh1 {[%clk 0:02:49]} 19. O-O-O {[%clk 0:02:44]}  Rac8 {[%clk 0:02:22]} 20. f4 {[%clk 0:02:43]}  Qc6 {[%clk 0:01:30]} 21. Bg2 {[%clk 0:02:38]}  Qc7 {[%clk 0:01:26]} 22. Qh5 {[%clk 0:02:35]}  g6 {[%clk 0:01:24]} 23. Qh4+ {[%clk 0:02:33]}  Kf8 {[%clk 0:00:34]} 24. Bh3 {[%clk 0:02:31]}  Re8 {[%clk 0:00:29]} 25. Qh6+ {[%clk 0:02:18]}  Kg8 {[%clk 0:00:29]} 26. f5 {[%clk 0:02:18]}  Qe7 {[%clk 0:00:21]} 27. Kb1 {[%clk 0:02:17]}  Qf8 {[%clk 0:00:16]} 28. Qh4 {[%clk 0:02:17]}  f6 {[%clk 0:00:14]} 29. Bg2 {[%clk 0:02:16]}  Kg7 {[%clk 0:00:13]} 30. Be4 {[%clk 0:02:12]}  g5 {[%clk 0:00:13]} 31. Qg4 {[%clk 0:02:10]}  h5 {[%clk 0:00:12]} 32. Qf3 {[%clk 0:02:11]}  Qe7 {[%clk 0:00:10]} 33. Bd5 {[%clk 0:02:10]}  a5 {[%clk 0:00:09]} 34. Qe4 {[%clk 0:02:09]}  b5 {[%clk 0:00:10]} 35. a3 {[%clk 0:02:06]}  Rb8 {[%clk 0:00:07]} 36. b4 {[%clk 0:02:06]}  axb4 {[%clk 0:00:08]} 37. axb4 {[%clk 0:02:06]}  Bb6 {[%clk 0:00:08]} 38. Kb2 {[%clk 0:02:06]}  Rhc8 {[%clk 0:00:06]} 39. Be6 {[%clk 0:02:06]}  Rc7 {[%clk 0:00:06]} 40. Qf3 {[%clk 0:02:05]}  Kh6 {[%clk 0:00:05]} 41. h4 {[%clk 0:02:04]}  Rf8 {[%clk 0:00:03]} 42. hxg5+ {[%clk 0:02:03]}  fxg5 {[%clk 0:00:04]} 43. Rh1 {[%clk 0:02:03]}  Qe8 {[%clk 0:00:04]} 44. Qe2 {[%clk 0:02:00]}  Rh7 {[%clk 0:00:03]} 45. Ra1 {[%clk 0:01:56]}  Ra7 {[%clk 0:00:02]} 46. Rh1 {[%clk 0:01:55]}  Rh8 {[%clk 0:00:01]} 47. Qd2 {[%clk 0:01:52]}  Kg7 {[%clk 0:00:01]} 48. Qxg5+ {[%clk 0:01:52]}  Kf8 {[%clk 0:00:02]} 49. Qf6+ {[%clk 0:01:53]}  Rf7 {[%clk 0:00:02]} 50. Qxh8+ {[%clk 0:01:52]}  Ke7 {[%clk 0:00:01]} 51. Qxe8+ {[%clk 0:01:53]}  Kxe8 {[%clk 0:00:02]} 52. Bxf7+ {[%clk 0:01:53]}  Kxf7 {[%clk 0:00:03]} 53. Rxh5 {[%clk 0:01:54]}  Kf6 {[%clk 0:00:04]} 54. g4 {[%clk 0:01:54]}  Be3 {[%clk 0:00:04]} 55. Kc2 {[%clk 0:01:54]}  Bf4 {[%clk 0:00:04]} 56. Rh8 {[%clk 0:01:52]}  d5 {[%clk 0:00:05]} 57. Rf8+ {[%clk 0:01:52]}  Kg5 {[%clk 0:00:06]} 58. Rg8+ {[%clk 0:01:52]}  Kf6 {[%clk 0:00:06]} 59. Rg6+ {[%clk 0:01:52]}  Kf7 {[%clk 0:00:06]} 60. Rd6 {[%clk 0:01:53]}  d4 {[%clk 0:00:06]} 61. cxd4 {[%clk 0:01:53]} 1-0


[Site "https://www.chess.com"]

[Event "Titled Tuesday Blitz July 25 Early 2023"]
[White "Eynullayev, Atilla"]
[Black "Zubritskiy, Artyom"]
[WhiteFideId "13413570"]
[BlackFideId "4181247"]
[WhiteElo "2530"]
[BlackElo "2742"]
[Result "0-1"]
[Round "4"]
[TimeControl "180+2"]
[Date "2023.07.25"]
[WhiteClock "0:00:07"]
[BlackClock "0:00:08"]
[Board "70"]

1. d4 {[%clk 0:03:00]}  Nc6 {[%clk 0:03:00]} 2. Nf3 {[%clk 0:02:58]}  d6 {[%clk 0:03:00]} 3. c4 {[%clk 0:02:57]}  g6 {[%clk 0:02:59]} 4. g3 {[%clk 0:02:57]}  Bg7 {[%clk 0:03:00]} 5. Bg2 {[%clk 0:02:58]}  f5 {[%clk 0:03:00]} 6. O-O {[%clk 0:02:58]}  Nf6 {[%clk 0:03:01]} 7. Nc3 {[%clk 0:02:59]}  O-O {[%clk 0:03:01]} 8. Rb1 {[%clk 0:02:58]}  e5 {[%clk 0:03:01]} 9. dxe5 {[%clk 0:02:55]}  dxe5 {[%clk 0:03:01]} 10. Nd5 {[%clk 0:02:56]}  e4 {[%clk 0:03:00]} 11. Ne1 {[%clk 0:02:44]}  Be6 {[%clk 0:02:32]} 12. Bg5 {[%clk 0:02:29]}  Ne5 {[%clk 0:01:45]} 13. b3 {[%clk 0:02:23]}  c6 {[%clk 0:01:45]} 14. Nxf6+ {[%clk 0:02:22]}  Bxf6 {[%clk 0:01:46]} 15. Bxf6 {[%clk 0:02:18]}  Qxf6 {[%clk 0:01:44]} 16. Nc2 {[%clk 0:02:18]}  Rad8 {[%clk 0:01:31]} 17. Qe1 {[%clk 0:02:18]}  b6 {[%clk 0:01:09]} 18. Qb4 {[%clk 0:02:15]}  c5 {[%clk 0:01:07]} 19. Qa4 {[%clk 0:02:11]}  Rd2 {[%clk 0:01:06]} 20. Ne3 {[%clk 0:02:01]}  Rxe2 {[%clk 0:01:01]} 21. Qxa7 {[%clk 0:02:01]}  f4 {[%clk 0:01:01]} 22. gxf4 {[%clk 0:00:44]}  Qxf4 {[%clk 0:00:54]} 23. Qe7 {[%clk 0:00:45]}  Bh3 {[%clk 0:00:48]} 24. Rbd1 {[%clk 0:00:14]}  Bxg2 {[%clk 0:00:16]} 25. Kxg2 {[%clk 0:00:14]}  Nf3 {[%clk 0:00:13]} 26. Qe6+ {[%clk 0:00:14]}  Kh8 {[%clk 0:00:11]} 27. Qh3 {[%clk 0:00:13]}  Qxe3 {[%clk 0:00:11]} 28. Rd7 {[%clk 0:00:12]}  Ne1+ {[%clk 0:00:08]} 29. Rxe1 {[%clk 0:00:08]}  Rfxf2+ {[%clk 0:00:08]} 30. Kh1 {[%clk 0:00:07]}  Rxe1+ {[%clk 0:00:08]} 0-1


[Site "https://www.chess.com"]

[Event "Titled Tuesday Blitz July 25 Early 2023"]
[White "Tokman, Ariel"]
[Black "Schmakel, Sam"]
[WhiteFideId "117420"]
[BlackFideId "2039311"]
[WhiteElo "2526"]
[BlackElo "2741"]
[Result "0-1"]
[Round "4"]
[TimeControl "180+2"]
[Date "2023.07.25"]
[WhiteClock "0:00:01"]
[BlackClock "0:00:02"]
[Board "71"]

1. d4 {[%clk 0:03:00]}  d5 {[%clk 0:02:58]} 2. c4 {[%clk 0:02:58]}  e6 {[%clk 0:02:58]} 3. Nf3 {[%clk 0:02:58]}  c6 {[%clk 0:02:58]} 4. Nbd2 {[%clk 0:02:56]}  Nf6 {[%clk 0:02:56]} 5. b3 {[%clk 0:02:57]}  Nbd7 {[%clk 0:02:53]} 6. e3 {[%clk 0:02:57]}  Bd6 {[%clk 0:02:53]} 7. Bb2 {[%clk 0:02:58]}  O-O {[%clk 0:02:54]} 8. Be2 {[%clk 0:02:58]}  b6 {[%clk 0:02:53]} 9. O-O {[%clk 0:02:57]}  Bb7 {[%clk 0:02:53]} 10. Ne5 {[%clk 0:02:58]}  c5 {[%clk 0:02:50]} 11. cxd5 {[%clk 0:02:54]}  exd5 {[%clk 0:02:44]} 12. Ndf3 {[%clk 0:02:53]}  a6 {[%clk 0:02:37]} 13. Rc1 {[%clk 0:02:50]}  Rc8 {[%clk 0:02:32]} 14. Bd3 {[%clk 0:02:30]}  Ne4 {[%clk 0:01:56]} 15. Qe2 {[%clk 0:02:28]}  b5 {[%clk 0:01:53]} 16. Nxd7 {[%clk 0:02:21]}  Qxd7 {[%clk 0:01:54]} 17. dxc5 {[%clk 0:02:21]}  Bxc5 {[%clk 0:01:51]} 18. Nd4 {[%clk 0:02:03]}  Rfe8 {[%clk 0:01:02]} 19. Rfd1 {[%clk 0:02:01]}  Bd6 {[%clk 0:01:01]} 20. Rxc8 {[%clk 0:01:58]}  Rxc8 {[%clk 0:00:55]} 21. Qh5 {[%clk 0:01:47]}  g6 {[%clk 0:00:50]} 22. Qh4 {[%clk 0:01:34]}  Be7 {[%clk 0:00:46]} 23. Qf4 {[%clk 0:01:26]}  Nc3 {[%clk 0:00:32]} 24. Ra1 {[%clk 0:01:09]}  Bf8 {[%clk 0:00:26]} 25. h4 {[%clk 0:01:05]}  Qd6 {[%clk 0:00:22]} 26. Qf3 {[%clk 0:01:00]}  Bg7 {[%clk 0:00:20]} 27. h5 {[%clk 0:00:57]}  Ne4 {[%clk 0:00:13]} 28. hxg6 {[%clk 0:00:54]}  hxg6 {[%clk 0:00:13]} 29. a4 {[%clk 0:00:48]}  b4 {[%clk 0:00:14]} 30. Qe2 {[%clk 0:00:42]}  Nc3 {[%clk 0:00:12]} 31. Qf3 {[%clk 0:00:42]}  a5 {[%clk 0:00:11]} 32. Rc1 {[%clk 0:00:37]}  Rc5 {[%clk 0:00:05]} 33. Qg4 {[%clk 0:00:32]}  Bc8 {[%clk 0:00:05]} 34. Qf3 {[%clk 0:00:32]}  Ba6 {[%clk 0:00:05]} 35. Bxa6 {[%clk 0:00:27]}  Qxa6 {[%clk 0:00:05]} 36. Nb5 {[%clk 0:00:25]}  Qc6 {[%clk 0:00:04]} 37. Bxc3 {[%clk 0:00:08]}  bxc3 {[%clk 0:00:03]} 38. Rc2 {[%clk 0:00:08]}  Qe6 {[%clk 0:00:02]} 39. Qf4 {[%clk 0:00:05]}  Rc8 {[%clk 0:00:01]} 40. g3 {[%clk 0:00:04]}  d4 {[%clk 0:00:01]} 41. exd4 {[%clk 0:00:03]}  Qxb3 {[%clk 0:00:02]} 42. Qe4 {[%clk 0:00:02]}  Qxa4 {[%clk 0:00:02]} 43. Qd3 {[%clk 0:00:02]}  Qb4 {[%clk 0:00:02]} 44. d5 {[%clk 0:00:02]}  a4 {[%clk 0:00:02]} 45. d6 {[%clk 0:00:02]}  a3 {[%clk 0:00:03]} 46. d7 {[%clk 0:00:02]}  Rd8 {[%clk 0:00:03]} 47. Nxc3 {[%clk 0:00:02]}  Qb3 {[%clk 0:00:03]} 48. Qd2 {[%clk 0:00:01]}  a2 {[%clk 0:00:02]} 0-1


[Site "https://www.chess.com"]

[Event "Titled Tuesday Blitz July 25 Early 2023"]
[White "Xu, Yi"]
[Black "Makkar, Rajat"]
[WhiteFideId "8605564"]
[BlackFideId "36016810"]
[WhiteElo "2736"]
[BlackElo "2525"]
[Result "1-0"]
[Round "4"]
[TimeControl "180+2"]
[Date "2023.07.25"]
[WhiteClock "0:00:15"]
[BlackClock "0:00:06"]
[Board "73"]

1. e4 {[%clk 0:03:00]}  c5 {[%clk 0:02:05]} 2. Nf3 {[%clk 0:02:59]}  Nc6 {[%clk 0:02:05]} 3. Bb5 {[%clk 0:02:59]}  g6 {[%clk 0:02:05]} 4. O-O {[%clk 0:02:58]}  Bg7 {[%clk 0:02:05]} 5. c3 {[%clk 0:02:58]}  e5 {[%clk 0:02:02]} 6. d4 {[%clk 0:02:58]}  exd4 {[%clk 0:02:02]} 7. cxd4 {[%clk 0:02:58]}  cxd4 {[%clk 0:02:03]} 8. Bf4 {[%clk 0:02:58]}  Nge7 {[%clk 0:02:04]} 9. Bd6 {[%clk 0:02:55]}  a6 {[%clk 0:02:04]} 10. Ba4 {[%clk 0:02:54]}  b5 {[%clk 0:02:05]} 11. Bb3 {[%clk 0:02:54]}  O-O {[%clk 0:02:04]} 12. e5 {[%clk 0:02:42]}  Bb7 {[%clk 0:02:03]} 13. Re1 {[%clk 0:02:28]}  h6 {[%clk 0:02:00]} 14. Nbd2 {[%clk 0:02:05]}  Na5 {[%clk 0:01:41]} 15. Nxd4 {[%clk 0:01:50]}  Nxb3 {[%clk 0:01:41]} 16. N2xb3 {[%clk 0:01:47]}  Re8 {[%clk 0:01:41]} 17. Nc5 {[%clk 0:01:47]}  Bc6 {[%clk 0:01:29]} 18. Qd3 {[%clk 0:01:27]}  Nc8 {[%clk 0:01:24]} 19. Nxc6 {[%clk 0:01:26]}  dxc6 {[%clk 0:01:25]} 20. Rad1 {[%clk 0:01:26]}  Qb6 {[%clk 0:01:11]} 21. b4 {[%clk 0:01:24]}  a5 {[%clk 0:01:10]} 22. a3 {[%clk 0:01:24]}  axb4 {[%clk 0:01:05]} 23. axb4 {[%clk 0:01:25]}  Ra7 {[%clk 0:00:56]} 24. h4 {[%clk 0:01:24]}  Ne7 {[%clk 0:00:56]} 25. h5 {[%clk 0:01:20]}  g5 {[%clk 0:00:55]} 26. Ne4 {[%clk 0:01:09]}  Nd5 {[%clk 0:00:46]} 27. Bc5 {[%clk 0:01:08]}  Qc7 {[%clk 0:00:47]} 28. Bxa7 {[%clk 0:01:07]}  Qxa7 {[%clk 0:00:48]} 29. Nf6+ {[%clk 0:01:02]}  Nxf6 {[%clk 0:00:32]} 30. exf6 {[%clk 0:01:03]}  Rxe1+ {[%clk 0:00:33]} 31. Rxe1 {[%clk 0:01:03]}  Bxf6 {[%clk 0:00:34]} 32. Re8+ {[%clk 0:00:43]}  Kg7 {[%clk 0:00:34]} 33. Qd6 {[%clk 0:00:44]}  Kh7 {[%clk 0:00:14]} 34. Qf8 {[%clk 0:00:31]}  Qa1+ {[%clk 0:00:12]} 35. Kh2 {[%clk 0:00:31]}  Be5+ {[%clk 0:00:08]} 36. g3 {[%clk 0:00:31]}  Bxg3+ {[%clk 0:00:09]} 37. Kg2 {[%clk 0:00:15]}  Qg7 {[%clk 0:00:05]} 38. Qxg7+ {[%clk 0:00:15]}  Kxg7 {[%clk 0:00:06]} 39. fxg3 {[%clk 0:00:15]} 1-0


[Site "https://www.chess.com"]

[Event "Titled Tuesday Blitz July 25 Early 2023"]
[White "Sreyas Payyappat"]
[Black "Bryakin, Mikhail"]
[WhiteFideId "46674969"]
[BlackFideId "4165314"]
[WhiteElo "2517"]
[BlackElo "2736"]
[Result "0-1"]
[Round "4"]
[TimeControl "180+2"]
[Date "2023.07.25"]
[WhiteClock "0:00:26"]
[BlackClock "0:00:19"]
[Board "74"]

1. e4 {[%clk 0:03:00]}  g6 {[%clk 0:02:59]} 2. d4 {[%clk 0:03:00]}  Bg7 {[%clk 0:03:00]} 3. Nc3 {[%clk 0:03:00]}  d6 {[%clk 0:03:00]} 4. Be3 {[%clk 0:03:00]}  Nf6 {[%clk 0:02:54]} 5. Nf3 {[%clk 0:03:00]}  a6 {[%clk 0:02:54]} 6. Qd2 {[%clk 0:02:56]}  b5 {[%clk 0:02:53]} 7. Bd3 {[%clk 0:02:55]}  b4 {[%clk 0:02:52]} 8. Ne2 {[%clk 0:02:51]}  Bb7 {[%clk 0:02:52]} 9. Qxb4 {[%clk 0:02:46]}  Qc8 {[%clk 0:02:41]} 10. d5 {[%clk 0:02:34]}  a5 {[%clk 0:02:28]} 11. Qa4+ {[%clk 0:02:31]}  c6 {[%clk 0:02:25]} 12. Ned4 {[%clk 0:01:37]}  O-O {[%clk 0:02:24]} 13. c4 {[%clk 0:01:37]}  c5 {[%clk 0:02:19]} 14. Nb5 {[%clk 0:01:34]}  Ng4 {[%clk 0:02:18]} 15. O-O-O {[%clk 0:01:33]}  Nxe3 {[%clk 0:02:17]} 16. fxe3 {[%clk 0:01:34]}  Na6 {[%clk 0:02:16]} 17. h3 {[%clk 0:01:31]}  Nb4 {[%clk 0:02:12]} 18. Bb1 {[%clk 0:01:29]}  Qd8 {[%clk 0:02:12]} 19. g4 {[%clk 0:01:26]}  Bc8 {[%clk 0:01:28]} 20. a3 {[%clk 0:01:23]}  Na6 {[%clk 0:01:28]} 21. Rhg1 {[%clk 0:01:11]}  h6 {[%clk 0:01:27]} 22. h4 {[%clk 0:01:08]}  Bd7 {[%clk 0:01:27]} 23. g5 {[%clk 0:00:51]}  h5 {[%clk 0:01:27]} 24. e5 {[%clk 0:00:49]}  Nc7 {[%clk 0:01:23]} 25. Rdf1 {[%clk 0:00:27]}  Nxb5 {[%clk 0:01:24]} 26. cxb5 {[%clk 0:00:27]}  Qb6 {[%clk 0:01:19]} 27. Bd3 {[%clk 0:00:27]}  c4 {[%clk 0:01:20]} 28. Bxc4 {[%clk 0:00:26]}  Rfc8 {[%clk 0:01:19]} 29. Kb1 {[%clk 0:00:26]}  Qxe3 {[%clk 0:01:05]} 30. e6 {[%clk 0:00:24]}  Be8 {[%clk 0:01:02]} 31. exf7+ {[%clk 0:00:19]}  Bxf7 {[%clk 0:01:03]} 32. Rg2 {[%clk 0:00:19]}  Qc5 {[%clk 0:00:54]} 33. Rc2 {[%clk 0:00:17]}  Rab8 {[%clk 0:00:49]} 34. Nd2 {[%clk 0:00:17]}  Qd4 {[%clk 0:00:47]} 35. Rfc1 {[%clk 0:00:16]}  Qxh4 {[%clk 0:00:47]} 36. Bb3 {[%clk 0:00:16]}  Rxc2 {[%clk 0:00:46]} 37. Rxc2 {[%clk 0:00:16]}  Qxa4 {[%clk 0:00:43]} 38. Bxa4 {[%clk 0:00:17]}  Bxd5 {[%clk 0:00:44]} 39. Nc4 {[%clk 0:00:16]}  Be4 {[%clk 0:00:44]} 40. Nxa5 {[%clk 0:00:16]}  Ra8 {[%clk 0:00:43]} 41. b4 {[%clk 0:00:16]}  h4 {[%clk 0:00:40]} 42. b6 {[%clk 0:00:16]}  h3 {[%clk 0:00:38]} 43. Bc6 {[%clk 0:00:15]}  Bxc2+ {[%clk 0:00:33]} 44. Kxc2 {[%clk 0:00:16]}  Rb8 {[%clk 0:00:33]} 45. b7 {[%clk 0:00:16]}  e6 {[%clk 0:00:32]} 46. Nc4 {[%clk 0:00:16]}  d5 {[%clk 0:00:31]} 47. Ne3 {[%clk 0:00:14]}  h2 {[%clk 0:00:31]} 48. Nxd5 {[%clk 0:00:14]}  exd5 {[%clk 0:00:18]} 49. Bxd5+ {[%clk 0:00:15]}  Kf8 {[%clk 0:00:19]} 50. a4 {[%clk 0:00:16]}  Ke7 {[%clk 0:00:18]} 51. a5 {[%clk 0:00:17]}  Kd6 {[%clk 0:00:19]} 52. Bh1 {[%clk 0:00:17]}  Kc7 {[%clk 0:00:18]} 53. a6 {[%clk 0:00:18]}  Kb6 {[%clk 0:00:18]} 54. b5 {[%clk 0:00:19]}  Bd4 {[%clk 0:00:17]} 55. Kb3 {[%clk 0:00:19]}  Be3 {[%clk 0:00:17]} 56. Kc4 {[%clk 0:00:20]}  Bxg5 {[%clk 0:00:18]} 57. Bf3 {[%clk 0:00:19]}  Be3 {[%clk 0:00:18]} 58. Kd3 {[%clk 0:00:19]}  Bc5 {[%clk 0:00:18]} 59. Kc4 {[%clk 0:00:19]}  Bf2 {[%clk 0:00:18]} 60. Bg2 {[%clk 0:00:19]}  g5 {[%clk 0:00:18]} 61. Bh1 {[%clk 0:00:20]}  g4 {[%clk 0:00:19]} 62. Bg2 {[%clk 0:00:21]}  Ka7 {[%clk 0:00:19]} 63. Bh1 {[%clk 0:00:22]}  Bb6 {[%clk 0:00:19]} 64. Bg2 {[%clk 0:00:23]}  Rh8 {[%clk 0:00:20]} 65. Bh1 {[%clk 0:00:23]}  Rf8 {[%clk 0:00:20]} 66. Kd5 {[%clk 0:00:24]}  Rf1 {[%clk 0:00:19]} 67. Bg2 {[%clk 0:00:25]}  Rg1 {[%clk 0:00:19]} 68. Kc6 {[%clk 0:00:26]}  Rxg2 {[%clk 0:00:19]} 69. Kd7 {[%clk 0:00:27]}  Rc2 {[%clk 0:00:19]} 70. Ke8 {[%clk 0:00:26]}  h1=Q {[%clk 0:00:19]} 0-1


[Site "https://www.chess.com"]

[Event "Titled Tuesday Blitz July 25 Early 2023"]
[White "only_strong_moves"]
[Black "Fantastic_Power"]
[WhiteElo "2517"]
[BlackElo "2733"]
[Result "0-1"]
[Round "4"]
[TimeControl "180+2"]
[Date "2023.07.25"]
[WhiteClock "0:00:15"]
[BlackClock "0:00:05"]
[Board "76"]

1. d4 {[%clk 0:03:00]}  Nf6 {[%clk 0:02:59]} 2. Nc3 {[%clk 0:03:00]}  g6 {[%clk 0:02:57]} 3. Bf4 {[%clk 0:03:00]}  Bg7 {[%clk 0:02:55]} 4. e3 {[%clk 0:03:00]}  c5 {[%clk 0:02:54]} 5. d5 {[%clk 0:02:59]}  d6 {[%clk 0:02:54]} 6. h3 {[%clk 0:02:59]}  Na6 {[%clk 0:02:54]} 7. Bb5+ {[%clk 0:02:57]}  Nd7 {[%clk 0:02:52]} 8. Nge2 {[%clk 0:02:55]}  Nc7 {[%clk 0:02:52]} 9. a4 {[%clk 0:02:47]}  Rb8 {[%clk 0:02:49]} 10. O-O {[%clk 0:02:40]}  a6 {[%clk 0:02:48]} 11. Bxd7+ {[%clk 0:02:39]}  Bxd7 {[%clk 0:02:49]} 12. a5 {[%clk 0:02:36]}  O-O {[%clk 0:02:48]} 13. e4 {[%clk 0:02:23]}  b5 {[%clk 0:02:42]} 14. axb6 {[%clk 0:02:23]}  Rxb6 {[%clk 0:02:42]} 15. Ra2 {[%clk 0:02:12]}  Nb5 {[%clk 0:02:39]} 16. Na4 {[%clk 0:02:09]}  Rb7 {[%clk 0:02:37]} 17. Be3 {[%clk 0:02:04]}  Qc7 {[%clk 0:02:33]} 18. c4 {[%clk 0:02:01]}  Na7 {[%clk 0:02:33]} 19. Bd2 {[%clk 0:01:56]}  Nc8 {[%clk 0:01:57]} 20. Bc3 {[%clk 0:01:54]}  Bxa4 {[%clk 0:01:57]} 21. Qxa4 {[%clk 0:01:53]}  Nb6 {[%clk 0:01:57]} 22. Qc2 {[%clk 0:01:43]}  Bxc3 {[%clk 0:01:51]} 23. Qxc3 {[%clk 0:01:41]}  Ra8 {[%clk 0:01:28]} 24. f4 {[%clk 0:01:41]}  Nd7 {[%clk 0:01:26]} 25. Nc1 {[%clk 0:01:35]}  a5 {[%clk 0:01:17]} 26. Nd3 {[%clk 0:01:35]}  a4 {[%clk 0:01:15]} 27. e5 {[%clk 0:01:35]}  Rb3 {[%clk 0:01:04]} 28. Qxb3 {[%clk 0:01:25]}  axb3 {[%clk 0:01:05]} 29. Rxa8+ {[%clk 0:01:26]}  Kg7 {[%clk 0:01:05]} 30. Rfa1 {[%clk 0:01:22]}  dxe5 {[%clk 0:00:39]} 31. R8a7 {[%clk 0:01:21]}  Qd8 {[%clk 0:00:26]} 32. fxe5 {[%clk 0:01:21]}  Nb6 {[%clk 0:00:26]} 33. Rc1 {[%clk 0:01:02]}  Nxd5 {[%clk 0:00:20]} 34. cxd5 {[%clk 0:01:01]}  c4 {[%clk 0:00:21]} 35. Nf2 {[%clk 0:01:01]}  Qxd5 {[%clk 0:00:19]} 36. Rc7 {[%clk 0:00:58]}  Qxe5 {[%clk 0:00:18]} 37. R7xc4 {[%clk 0:00:50]}  Qxb2 {[%clk 0:00:18]} 38. Nd3 {[%clk 0:00:47]}  Qd2 {[%clk 0:00:17]} 39. Nc5 {[%clk 0:00:27]}  Qa2 {[%clk 0:00:11]} 40. Nd3 {[%clk 0:00:14]}  b2 {[%clk 0:00:09]} 41. Nxb2 {[%clk 0:00:14]}  Qxb2 {[%clk 0:00:09]} 42. Re1 {[%clk 0:00:14]}  Qb6+ {[%clk 0:00:09]} 43. Kh1 {[%clk 0:00:13]}  e6 {[%clk 0:00:09]} 44. Rce4 {[%clk 0:00:14]}  Qd6 {[%clk 0:00:08]} 45. R4e2 {[%clk 0:00:15]}  Kf8 {[%clk 0:00:08]} 46. Rf1 {[%clk 0:00:15]}  h5 {[%clk 0:00:08]} 47. Ref2 {[%clk 0:00:16]}  Qd7 {[%clk 0:00:08]} 48. Ra2 {[%clk 0:00:17]}  Kg7 {[%clk 0:00:09]} 49. Ra8 {[%clk 0:00:17]}  Qb7 {[%clk 0:00:08]} 50. Ra3 {[%clk 0:00:18]}  f5 {[%clk 0:00:08]} 51. Raf3 {[%clk 0:00:18]}  Kf6 {[%clk 0:00:08]} 52. Re1 {[%clk 0:00:19]}  e5 {[%clk 0:00:09]} 53. Kg1 {[%clk 0:00:19]}  e4 {[%clk 0:00:09]} 54. Rf2 {[%clk 0:00:19]}  Qb6 {[%clk 0:00:10]} 55. Kf1 {[%clk 0:00:18]}  Kg5 {[%clk 0:00:09]} 56. g3 {[%clk 0:00:17]}  h4 {[%clk 0:00:09]} 57. g4 {[%clk 0:00:17]}  Qb5+ {[%clk 0:00:07]} 58. Kg2 {[%clk 0:00:16]}  Qd5 {[%clk 0:00:07]} 59. gxf5 {[%clk 0:00:15]}  gxf5 {[%clk 0:00:08]} 60. Kh2 {[%clk 0:00:15]}  f4 {[%clk 0:00:08]} 61. Rg2+ {[%clk 0:00:15]}  Kf6 {[%clk 0:00:07]} 62. Reg1 {[%clk 0:00:16]}  Qe5 {[%clk 0:00:07]} 63. Rg4 {[%clk 0:00:16]}  f3+ {[%clk 0:00:07]} 64. Kh1 {[%clk 0:00:17]}  f2 {[%clk 0:00:06]} 65. Rf1 {[%clk 0:00:17]}  e3 {[%clk 0:00:07]} 66. Rg2 {[%clk 0:00:16]}  Ke6 {[%clk 0:00:06]} 67. Rh2 {[%clk 0:00:16]}  Qg3 {[%clk 0:00:03]} 68. Ra1 {[%clk 0:00:14]}  Qf3+ {[%clk 0:00:03]} 69. Rg2 {[%clk 0:00:14]}  f1=Q+ {[%clk 0:00:04]} 70. Rxf1 {[%clk 0:00:14]}  Qxf1+ {[%clk 0:00:05]} 71. Rg1 {[%clk 0:00:15]}  Qxh3# {[%clk 0:00:05]} 0-1


[Site "https://www.chess.com"]

[Event "Titled Tuesday Blitz July 25 Early 2023"]
[White "Skvortsov, Andrei"]
[Black "ATM622"]
[WhiteFideId "24108600"]
[WhiteElo "2732"]
[BlackElo "2513"]
[Result "1-0"]
[Round "4"]
[TimeControl "180+2"]
[Date "2023.07.25"]
[WhiteClock "0:00:33"]
[BlackClock "0:00:01"]
[Board "77"]

1. e4 {[%clk 0:03:00]}  c6 {[%clk 0:02:58]} 2. Nc3 {[%clk 0:02:58]}  d5 {[%clk 0:02:49]} 3. Nf3 {[%clk 0:02:57]}  dxe4 {[%clk 0:02:47]} 4. Nxe4 {[%clk 0:02:58]}  Bf5 {[%clk 0:02:45]} 5. Ng3 {[%clk 0:02:56]}  Bg6 {[%clk 0:02:46]} 6. Ne5 {[%clk 0:02:54]}  Nd7 {[%clk 0:02:44]} 7. Nxg6 {[%clk 0:02:51]}  hxg6 {[%clk 0:02:45]} 8. d4 {[%clk 0:02:50]}  Ngf6 {[%clk 0:02:44]} 9. c3 {[%clk 0:02:46]}  Qc7 {[%clk 0:02:28]} 10. h3 {[%clk 0:02:43]}  O-O-O {[%clk 0:02:28]} 11. Qb3 {[%clk 0:02:42]}  e6 {[%clk 0:02:21]} 12. Ne2 {[%clk 0:02:33]}  Nb6 {[%clk 0:02:17]} 13. a4 {[%clk 0:02:32]}  Bd6 {[%clk 0:02:07]} 14. a5 {[%clk 0:02:31]}  Nbd5 {[%clk 0:02:06]} 15. a6 {[%clk 0:02:31]}  b6 {[%clk 0:02:04]} 16. g3 {[%clk 0:02:30]}  e5 {[%clk 0:02:02]} 17. dxe5 {[%clk 0:02:27]}  Bxe5 {[%clk 0:02:03]} 18. Bg2 {[%clk 0:02:27]}  Rhe8 {[%clk 0:02:00]} 19. O-O {[%clk 0:02:27]}  Nd7 {[%clk 0:01:35]} 20. Nd4 {[%clk 0:02:24]}  Nc5 {[%clk 0:01:33]} 21. Qc2 {[%clk 0:02:24]}  Bxd4 {[%clk 0:01:29]} 22. cxd4 {[%clk 0:02:21]}  Ne6 {[%clk 0:01:27]} 23. Qc4 {[%clk 0:02:18]}  b5 {[%clk 0:01:22]} 24. Qd3 {[%clk 0:02:14]}  Nb4 {[%clk 0:01:20]} 25. Qc3 {[%clk 0:02:07]}  Qd6 {[%clk 0:01:09]} 26. d5 {[%clk 0:01:46]}  Nxd5 {[%clk 0:01:04]} 27. Qf3 {[%clk 0:01:46]}  Rd7 {[%clk 0:00:55]} 28. Rd1 {[%clk 0:01:44]}  f5 {[%clk 0:00:49]} 29. b3 {[%clk 0:01:41]}  Qe5 {[%clk 0:00:44]} 30. Ba3 {[%clk 0:01:19]}  f4 {[%clk 0:00:28]} 31. Rac1 {[%clk 0:01:14]}  Nd4 {[%clk 0:00:13]} 32. Rxd4 {[%clk 0:01:01]}  Qxd4 {[%clk 0:00:14]} 33. Rxc6+ {[%clk 0:01:01]}  Kb8 {[%clk 0:00:14]} 34. Bc5 {[%clk 0:00:53]}  Re1+ {[%clk 0:00:11]} 35. Kh2 {[%clk 0:00:54]}  Qd1 {[%clk 0:00:11]} 36. Bd6+ {[%clk 0:00:40]}  Rxd6 {[%clk 0:00:09]} 37. Rxd6 {[%clk 0:00:40]}  fxg3+ {[%clk 0:00:05]} 38. Qxg3 {[%clk 0:00:36]}  Re5 {[%clk 0:00:01]} 39. Qxe5 {[%clk 0:00:33]} 1-0


[Site "https://www.chess.com"]